Cogmind - Beta 12 @@@ ROGUE MODE // 2023.11.30 @ 01:21:53 Player: DreamAR Result: Destroyed by D-53 Grenadier with Mini Grenade Launcher Performance ------------- Evolutions (0) 0 Regions Visited (2) 400 Robots Destroyed (18) 90 Value Destroyed (287) 287 Prototype IDs (3) 60 Alien Tech Used (0) 0 Bonus (0) 0 TOTAL SCORE: 837 Bonus ------- None Cogmind --------- Core Integrity 0/250 Matter 300/300 Energy 121/125 System Corruption 0% Temperature Cool (2) Movement Walking (190) Ox1 Location -10/Mines Parts ------- > --- POWER (1) -------- Light Ion Engine > --- PROPULSION (2) --- Aluminum Leg Carbon-fiber Leg > --- UTILITY (2) ------ Large Storage Unit Sensor Array > --- WEAPON (2) ------- Particle Gun Light Assault Rifle > --- INVENTORY (15) --- Light Ion Engine Improved Heat Sink Weight Redist. System Signal Interpreter Seismic Detector Medium Laser Small Laser Datajack Peak State ------------ > --- POWER ------------ Light Ion Engine > --- PROPULSION ------- Light Treads Carbon-fiber Leg > --- UTILITY ---------- Large Storage Unit Sensor Array > --- WEAPON ----------- Particle Gun Light Assault Rifle > --- INVENTORY -------- Light Ion Engine Aluminum Leg Improved Heat Sink Weight Redist. System Signal Interpreter Seismic Detector Medium Laser Small Laser Datajack [Rating: 11] Favorites ----------- Power Light Ion Engine Engine Light Ion Engine Propulsion Light Treads Treads Light Treads Leg Carbon-fiber Leg Utility Sensor Array Device Sensor Array Storage Large Storage Unit Weapon Medium Laser Energy Gun Medium Laser Ballistic Gun Assault Rifle Build | -11 -10 -10 ------- Run | Jun Mat Min Slots Evolved . | . . . Power . | . . . Propulsion . | . . . Utility . | . . . Weapon . | . . . Parts Attached 20 | 7 6 7 Power 5 | 1 2 2 Engine 5 | 1 2 2 Core . | . . . Reactor . | . . . Propulsion 7 | 2 2 3 Treads 5 | 2 2 1 Leg 2 | . . 2 Wheel . | . . . Hover . | . . . Flight . | . . . Utility 4 | 2 2 . Device 2 | 1 1 . Storage 2 | 1 1 . Processor . | . . . Hackware . | . . . Protection . | . . . Artifact . | . . . Weapon 4 | 2 . 2 Energy Gun 2 | 1 . 1 Energy Cannon . | . . . Ballistic Gun 2 | 1 . 1 Ballistic Cannon . | . . . Launcher . | . . . Special Weapon . | . . . Impact Weapon . | . . . Slashing Weapon . | . . . Piercing Weapon . | . . . Special Melee Weapon . | . . . Unidentified Prototypes . | . . . Parts Lost 2 | . . 2 Power 1 | . . 1 Propulsion . | . . . Utility . | . . . Weapon 1 | . . 1 Highest Loss Streak 1 | . . 1 To Critical Strikes . | . . . Average Slot Usage (%) 99 | . 100 99 Engine 14 | . 14 14 Treads 26 | . 28 20 Leg 1 | . . 7 Device 14 | . 14 14 Storage 14 | . 14 14 Energy Gun 14 | . 14 14 Ballistic Gun 13 | . 14 13 Naked Turns . | . . . Heaviest Build 30 | 13 30 29 Greatest Support 40 | 40 40 40 Greatest Overweight (x) 1 | . . 1 Average Overweight (x) . | . . . Largest Inventory Capacity 15 | 8 15 15 Average Capacity 12 | 7 13 15 Most Carried 12 | 6 10 12 Average Carried 7 | 5 7 9 Final Capacity 15 | 8 15 15 Final Carried 9 | 6 9 8 Class Distribution -------------------- 100% | Mutant Dominant Class ---------------- Mutant | -10/Materials Mutant | -10/Mines Resources | -11 -10 -10 ----------- Run | Jun Mat Min Matter Collected 583 | 190 218 175 Remotely . | . . . Salvage Created 485 | 37 289 159 Parts 33 | 3 23 7 Haulers Intercepted 1 | . 1 . Recyclers Shooed . | . . . Parts Field Recycled . | . . . Retrieved Matter . | . . . Parts Self-Destructed . | . . . Prevented . | . . . Kills | -11 -10 -10 ------- Run | Jun Mat Min Combat Hostiles Destroyed 14 | . 8 6 Guns 14 | . 8 6 Classes Destroyed 7 | 2 4 1 Worker 1 | 1 . . Tunneler 1 | 1 . . Hauler 1 | . 1 . Watcher 3 | . 3 . Swarmer 8 | . 6 2 Grunt 4 | . 2 2 Assembled 2 | . . 2 Best Kill Streak 5 | 1 5 2 Combat Bots Only 5 | . 5 2 Max Kills in Single Turn 1 | 1 1 1 Gunslinging . | . . . Exploded . | . . . Melee . | . . . Uniques/NPCs Destroyed . | . . . Combat | -11 -10 -10 -------- Run | Jun Mat Min Damage Taken 1084 | . 265 819 Core 261 | . 70 191 Absorbed by Shields . | . . . Regen/Repaired (Parts) 7 | . 7 . Core Remaining (%) 100 | 100 . . Volleys Fired 79 | 12 36 31 Largest 2 | 2 2 2 Hottest 85 | 70 70 85 Shots Fired 158 | 24 72 62 Gun 158 | 24 72 62 Cannon . | . . . Launcher . | . . . Special . | . . . Kinetic 79 | 12 36 31 Thermal 79 | 12 36 31 Explosive . | . . . Electromagnetic . | . . . Robot Hit Streak 8 | 5 7 8 Robot Miss Streak 5 | 2 4 5 Penetration Max . | . . . Secondary Targets 1 | . . 1 Max Gunslinging Chain 1 | . . 1 Shots Hit Robots 84 | 15 34 35 Core Hits 35 | 3 15 17 Critical Kills . | . . . Critical Parts Destroyed . | . . . Critical Strikes . | . . . Melee Attacks . | . . . Impact . | . . . Slashing . | . . . Piercing . | . . . Sneak Attacks . | . . . Combat Hostiles . | . . . Follow-up Attacks . | . . . Damage Inflicted 1053 | 195 444 414 Guns 1053 | 195 444 414 Cannons . | . . . Explosions . | . . . Melee . | . . . Ramming . | . . . Kinetic 449 | 83 193 173 Thermal 604 | 112 251 241 Explosive . | . . . Electromagnetic . | . . . Impact . | . . . Slashing . | . . . Piercing . | . . . Highest Corruption . | . . . Average Corruption . | . . . Corruption Purged . | . . . Corruption Blocked . | . . . Overload Shots . | . . . Overflow Damage . | . . . Projectiles . | . . . Explosions . | . . . Melee . | . . . Knockbacks . | . . . Impact . | . . . Kinetic . | . . . Secondary . | . . . Self-Inflicted Damage . | . . . Shots . | . . . Rammed . | . . . Targets Rammed . | . . . Kicked . | . . . Crushed . | . . . Highest Temperature 287 | 36 75 287 Average Temperature 66 | 14 20 126 Received Heat Transfer 234 | . 30 204 Siege Activations . | . . . Robots Corrupted . | . . . Combat Hostiles . | . . . Parts Fried . | . . . Impact Corruptions . | . . . Robots Melted . | . . . Combat Hostiles . | . . . Parts Melted 4 | . 3 1 Heat Transferred 1739 | 333 740 666 Parts Sabotaged . | . . . Parts Stolen . | . . . Parts Stripped . | . . . Power Chain Reactions . | . . . Missiles Intercepted . | . . . Alert | -11 -10 -10 ------- Run | Jun Mat Min Peak Influence 240 | 10 240 139 Initial 34 | . 6 34 Average 81 | 2 99 117 Maximum Alert Level 1 | . 1 . Low Security (%) 87 | 100 79 100 Level 1 12 | . 20 . Level 2 . | . . . Level 3 . | . . . Level 4 . | . . . Level 5 . | . . . High Security . | . . . Max Security . | . . . Squads Dispatched 1 | . 1 . Investigation . | . . . Extermination . | . . . Reinforcement 1 | . 1 . Assault . | . . . Garrison . | . . . Intercept . | . . . Searches Triggered . | . . . Construction Impeded . | . . . Haulers Reinforced . | . . . Active Scanning Responses . | . . . Cargo Convoy Interrupts . | . . . Stealth | -11 -10 -10 --------- Run | Jun Mat Min Distress Signals . | . . . Communications Jammed . | . . . Distress Signals . | . . . Times Spotted 31 | . 14 17 Peak Tracking Total 7 | . 4 7 Tactical Retreats 5 | . 2 3 Traps | -11 -10 -10 ------- Run | Jun Mat Min Traps Triggered . | . . . Indirectly . | . . . Trap Hack Attempts . | . . . Triggered . | . . . Disarmed . | . . . Reprogrammed . | . . . Reused . | . . . Traps Extracted . | . . . Installed . | . . . Triggered . | . . . Machines | -11 -10 -10 ---------- Run | Jun Mat Min Machines Disabled . | . . . Max in Single Turn . | . . . Machines Repaired . | . . . Machines Sabotaged . | . . . Overloaded Fab Kills . | . . . Hacking | -11 -10 -10 --------- Run | Jun Mat Min Machines Accessed 5 | . 4 1 Terminals 3 | . 2 1 Fabricators . | . . . Repair Stations 1 | . 1 . Recycling Units 1 | . 1 . Scanalyzers . | . . . Garrison Access . | . . . Total Hacks 16 | . 13 3 Successful 8 | . 8 . Failed 8 | . 5 3 Catastrophic . | . . . Database Lockouts . | . . . Manual 6 | . 6 . Terminals 11 | . 8 3 Fabricators . | . . . Repair Stations 2 | . 2 . Recycling Units 3 | . 3 . Scanalyzers . | . . . Garrison Access . | . . . Terminal Hacks 2 | . 2 . Prototype ID Bank 2 | . 2 . Fabricator Hacks . | . . . Repair Station Hacks 2 | . 2 . Scan Component 1 | . 1 . Repair 1 | . 1 . Recycling Unit Hacks 2 | . 2 . Report Inventory 1 | . 1 . Retrieve Components 1 | . 1 . Scanalyzer . | . . . Garrison Access Hacks . | . . . Unauthorized Hacks 2 | . 2 . Terminals 2 | . 2 . Botnet 1 | . 1 . Operators 1 | . 1 . Fabricators . | . . . Repair Stations . | . . . Recycling Units . | . . . Scanalyzers . | . . . Garrison Access . | . . . Data Cores Recovered . | . . . Used . | . . . Hacking Detections 4 | . 3 1 Full Trace Events . | . . . Feedback Events . | . . . Feedback Blocked . | . . . Robot Schematics Acquired . | . . . Robots Built . | . . . Authchips . | . . . Time . | . . . Total Robot Build Rating . | . . . Part Schematics Acquired . | . . . Parts Built . | . . . Authchips . | . . . Time . | . . . Total Part Build Rating . | . . . Parts Repaired 1 | . 1 . Time 26 | . 26 . Parts Recycled . | . . . Recycled Matter . | . . . Retrieved Matter . | . . . Retrieved Components 1 | . 1 . Parts Scanalyzed . | . . . Part Schematics Acquired . | . . . Parts Damaged . | . . . Bothacking | -11 -10 -10 ------------ Run | Jun Mat Min Used RIF Installer . | . . . Robots Hacked . | . . . Non-combat . | . . . Combat . | . . . Robot Hacks Applied . | . . . Relay Couplers Released . | . . . Fabnet Peak Effective % . | . . . Robots Rewired . | . . . Allies Hacked . | . . . Hacks Repelled . | . . . Allies | -11 -10 -10 -------- Run | Jun Mat Min Total Allies . | . . . Largest Group . | . . . Highest-Rated Group . | . . . Highest-Rated Ally . | . . . Total Orders . | . . . Ally Attacks . | . . . Total Damage . | . . . Kills . | . . . Allies Corrupted . | . . . Allies Melted 1 | . . 1 Intel | -11 -10 -10 ------- Run | Jun Mat Min Robot Analysis Total . | . . . Derelict Logs Recovered . | . . . Drone Launches . | . . . Drone Recoveries . | . . . Exploration | -11 -10 -10 ------------- Run | Jun Mat Min Turns Passed 1296 | 291 753 252 Spaces Moved 604 | 151 369 84 Core 2 | 2 . . Treads 564 | 149 369 46 Legs 38 | . . 38 Wheels . | . . . Hover . | . . . Flight . | . . . Fastest Speed 50 | 50 160 160 Average Speed 161 | 158 160 174 Slowest Speed 240 | 160 160 240 Overloaded Moves . | . . . Propulsion Burnouts . | . . . Robots Hopped . | . . . Cave-ins Triggered . | . . . Exploration Rate (%) 24 | 8 45 20 Regions Visited 2 Branch Regions 1 Pre-discovered Areas . | . . . Known Exits Taken . | . . . Unknown Exits Taken 2 | 1 1 . Scrap Searched . | . . . Spaces Dug . | . . . Terrain Destroyed . | . . . Melee . | . . . Projectile . | . . . AOE . | . . . Terrain Rammed . | . . . Walls Destroyed . | . . . Machines Disabled . | . . . Actions | -11 -10 -10 --------- Run | Jun Mat Min Total 769 | 175 461 133 Wait 36 | . 34 2 Move 602 | 150 368 84 Hop . | . . . Pick Up 19 | 6 9 4 Fast Attach 8 | 7 . 1 Attach 2 | . . 2 Detach . | . . . Swap 10 | . 6 4 Drop 13 | . 8 5 Fire 79 | 12 36 31 Melee . | . . . Ram . | . . . Kick . | . . . Crush . | . . . Escape Stasis . | . . . Rewire . | . . . Trap . | . . . Miscellaneous . | . . . Route ------- -11/Junkyard -10/Materials -10/Mines History --------- Turn | Location | Event 22 | -11/Junkyard | Discovered new exit (range 15) 292 | -11/Junkyard | Entered Materials 326 | -10/Materials | Build established: Mutant 487 | -10/Materials | Discovered new exit (range 14) 852 | -10/Materials | Repaired Datajack 1045 | -10/Materials | Entered Mines 1047 | -10/Mines | Met a Derelict bent on vengeance 1160 | -10/Mines | Assembled infested the area 1165 | -10/Mines | Assisted by a Guerilla fighting off Assembled 1290 | -10/Mines | Core integrity fell below 50% 1294 | -10/Mines | Core integrity fell below 20% 1297 | -10/Mines | Destroyed by D-53 Grenadier with Mini Grenade Launcher Last Messages --------------- 01181_ as-67664 suffers critical hit (Destroy). 01181_ as-67664 destroyed. 01183_ QN-AKQ(g): "TASTE MY VENGEANCE!" 01183_ as-14006 destroyed. 01183_ HV Slug penetrates as-83756. 01185_ HV Slug penetrates QN-AKQ(g). 01185_ QN-AKQ(g) suffers critical hit (Destroy). 01186_ QN-AKQ(g) destroyed. 01203_ as-93215 destroyed. 01207_ Acquired 14 matter. 01208_ Lgt. Ion Engine destroyed. 01216_ as-83756 destroyed. 01220_ Dropped Lgt. Treads. 01223_ Acquired Carbon-fiber Leg. 01226_ Dropped Lgt. Treads. 01227_ Acquired 45 matter. 01228_ Acquired 2 matter. 01264_ Connecting with Terminal... 01264_ Current location identified: Mines 01295_ The unstable cave ceiling collapses. Map ----- +----------------------------------------------------+ | ?????????????????????????????????????????????????? | | ?????????????????????????????????????????????????? | | ?????????????????????????????????????????????????? | | ?????????????????????????????????????????????????? | | ?????????????????????????????????????????????????? | | ?????????????????????????????????????????????????? | | ?????????????????????????????????????????????????? | | ?????????????????????????????????????????????????? | | ?????????????????????????????????????????????????? | | ?????????????????????????????????????????????????? | | ?????????????????????????????????????????????????? | | ?????????????????????????????###########?????????? | | ?????????????????????????????# #?????????? | | ????????????????????#####????# #?????????? | | ????????????????????? ###?# """ """ #?????????? | | ?????????????????????? ### """ """ #?????????? | | ?????????????????????? ?# """ """ #?????????? | | ??????????????????????? ?# #?????????? | | ??????????????????????## ##### #####T#?????????? | | ??????????????????????# ### ###??##?????????? | | ?????????????????????## ## ##????????????? | | ????????????????????## #????????????? | | ????????????????????# #????????????? | | ?????????????????????# ###???????????? | | ?????????????????????# d ### #???????????? | | ?????????????????????# @ ### #????###?????? | | ?????????????????????# d ## #????## ##????? | | ?????????????????????## % # ####### #????? | | ??????????????????????## %%r% ;### ## #????? | | ??????????????????????# %#;% == ##????? | | ?????????????????# %###% ### ##?????? | | ????????????????# " ?? ####?# #?## # #??????? | | ???????????????????? #?????# #??## ## #??????? | | ?????????????????? ?????? ???# ### #??????? | | ?????????????????# ? ?????# """ ??# #?# #??????? | | ??????????????????? ??????# """ ?# #?#=#??????? | | ??????????????????? ??????# """ ## #?# #??????? | | ??????????????????? ??????# ## #?#*###????? | | ??????????????????? ???????# ## ### ##???? | | ????????????????????????????### ??### ## ##??? | | ????????????????????????????????????# ## ##?? | | ????????????????????????????????????# ## ! #?? | | ????????????????????????????????????# ### * = ##? | | ????????????????????????????????????# #?##%## #? | | ????????????????????????????????????? ?? ######? | | ?????????????????????????????????????#?### #?????? | | ?????????????????????????????????????????# ?????? | | ????????????????????????????????????????? ?????? | | ????????????????????????????????????????? ?????? | | ????????????????????????????????????????? ?????? | +----------------------------------------------------+ Best States ------------- Heat Dissipation 25 Energy Generation 10 Energy Capacity 250 Matter Stores 300 Matter Capacity 300 Sight Range 16 Robot Scan Range 14 Terrain Scan Density 10 Evasion (%) 40 Recoil Reduction 2 Item Schematics ----------------- None Robot Schematics ------------------ None Fabricated ------------ Nothing Alien Tech Used ----------------- None Achievements -------------- None Challenges ------------ None Game ------ Seed FactoryAssembledHammer Manual? 0 Play Time 00:12:02 Cumulative 68.9 hours Start 2023.11.30 @ 01:12:39 End 2023.11.30 @ 01:21:53 Sessions 1 Manual Loads 0 Difficulty Rogue Special Mode None Game No. 25 Rogue 25 Adventurer 0 Explorer 0 Win Type - Total 0 Types 0/0/0/0/0/0/0/0/0 Lore% 39 Gallery% 56 Achievement% 46 Wizard Run 0 Options --------- ASCII 0 Keyboard 0 Movement Mouse Keybinds 0 Fullscreen 2 Font 18/SmallcapsGlow Map View 76x50 Tactical HUD 1 Map Filters NONE Filters NONE Steam 1 RUN: 23954bde-29c0-44a6-9a9b-0486b4274782